fUST/lending_fUST_20250114
["ID","MTS","AMOUNT","RATE_DAILY","PERIOD"]
[348905309,1736868660793,-2389.46,0.00023561,3]
[348905310,1736868660804,-636.07,0.00023561,3]
[348905311,1736868660815,-500.0,0.00023561,3]
[348905312,1736868660826,-656.19,0.00023561,3]
[348905313,1736868660837,-2727.96,0.00023561,3]
[348905314,1736868660848,-500.0,0.00023561,3]
[348905315,1736868660858,-1358.32,0.00023561,3]
[348905316,1736868660870,-1127.51,0.00023561,3]
[348905317,1736868660880,-1623.19,0.00023561,3]
[348905318,1736868660891,-500.0,0.00023561,3]
[348905319,1736868660902,-500.0,0.00023561,3]
[348905320,1736868660912,-1291.14,0.00023561,3]
[348905321,1736868660922,-964.02616037,0.00023572,2]
[348905322,1736868660932,-4522.73925108,0.00023598,2]
[348905323,1736868660943,-2000.0,0.000236,2]
[348905324,1736868660952,-6535.12344145,0.00023603,2]
[348905325,1736868660963,-1000.0,0.00023604,2]
[348905326,1736868660973,-159.94717318,0.00023612,2]
[348905327,1736868660983,-2311.110306,0.00023619,2]
[348905328,1736868660993,-4789.67850582,0.00023619,2]
[348905329,1736868661001,-211.01606803,0.00023624,2]
[348905330,1736868661010,-1000.0,0.00023631,2]
[348905331,1736868661020,-1000.0,0.0002364,2]
[348905332,1736868661031,-1000.0,0.00023664,2]
[348905333,1736868661040,-5033.64604402,0.00023665,2]
[348905334,1736868661050,-8512.3583443,0.00023665,2]
[348905335,1736868661059,-5000.0,0.00023665,2]
[348905336,1736868661069,-5000.0,0.00023665,2]
[348905337,1736868661079,-5000.0,0.00023665,2]
[348905338,1736868661090,-1000.0,0.00023665,2]
[348905339,1736868661099,-12128826.59554947,0.00023672,61]
[348905340,1736868844439,8523.94919405,0.00024,30]
[348905341,1736868844779,8523.94919405,0.00023981,30]
[348905342,1736868845077,8388.03562666,0.00023997,30]
[348905345,1736869397186,10000.0,0.00015052,2]
[348905346,1736869409518,161.189846,0.00013973,2]
[348905347,1736869627130,-300.0,0.00016373,2]
[348905348,1736869627154,-2812.85512057,0.00016373,2]
[348905349,1736869629129,-916.33726585,0.00016373,2]
[348905350,1736869643105,-532.24743769,0.00016373,2]
[348905351,1736869747147,-300.0,0.0001637,2]
[348905352,1736869747170,-65266.3758831,0.0001637,2]
[348905353,1736869750105,-153707.6241169,0.0001637,2]
[348905354,1736869750129,-500.0,0.00016371,2]
[348905355,1736869750151,-500.0,0.00016371,2]
[348905356,1736869750174,-226.56786395,0.00016371,2]
[348905357,1736869750198,-500.0,0.00016371,2]
[348905358,1736869750220,-500.0,0.00016371,2]
[348905359,1736869750245,-500.0,0.00016371,2]
[348905360,1736869750268,-500.0,0.00016371,2]
[348905361,1736869750291,-500.0,0.00016371,2]
[348905362,1736869750312,-500.0,0.00016371,2]
[348905363,1736869750334,-500.0,0.00016371,2]
[348905364,1736869750356,-500.0,0.00016371,2]
[348905365,1736869750376,-500.0,0.00016371,2]
[348905366,1736869750400,-262.51213099,0.00016371,2]
[348905367,1736869750424,-500.0,0.00016371,2]
[348905368,1736869750447,-305.79516399,0.00016371,2]
[348905369,1736869750470,-500.0,0.00016371,2]
[348905370,1736869750506,-500.0,0.00016371,2]
[348905371,1736869750534,-500.0,0.00016371,2]
[348905372,1736869750558,-500.0,0.00016371,2]
[348905373,1736869750582,-500.0,0.00016371,2]
[348905374,1736869750817,-500.0,0.00016371,2]
[348905375,1736869750848,-500.0,0.00016371,2]
[348905376,1736869750871,-500.0,0.00016371,2]
[348905377,1736869750893,-500.0,0.00016371,2]
[348905378,1736869750915,-500.0,0.00016371,2]
[348905379,1736869750937,-500.0,0.00016371,2]
[348905380,1736869750959,-500.0,0.00016371,2]
[348905381,1736869750980,-500.0,0.00016371,2]
[348905382,1736869751003,-500.0,0.00016371,2]
[348905383,1736869751026,-500.0,0.00016371,2]
[348905384,1736869751048,-500.0,0.00016371,2]
[348905385,1736869751071,-500.0,0.00016371,2]
[348905386,1736869751093,-500.0,0.00016371,2]
[348905387,1736869751116,-500.0,0.00016371,2]
[348905388,1736869751139,-500.0,0.00016371,2]
[348905389,1736869751161,-500.0,0.00016371,2]
[348905390,1736869751193,-422.67457369,0.00016371,2]
[348905391,1736869751217,-500.0,0.00016371,2]
[348905392,1736869751241,-500.0,0.00016371,2]
[348905393,1736869751263,-500.0,0.00016371,2]
[348905394,1736869751286,-500.0,0.00016371,2]
[348905395,1736869751307,-500.0,0.00016371,2]
[348905396,1736869751328,-192.77300608,0.00016373,2]
[348905397,1736869751348,-521.31161178,0.00016373,2]
[348905398,1736869751369,-177.91514062,0.00016373,2]
[348905399,1736869751395,-24900.0,0.00016374,2]
[348905400,1736869751416,-200.47219587,0.000164,2]
[348905401,1736869751446,-5000.0,0.00016447,2]
[348905402,1736869751468,-5000.0,0.00016613,2]
[348905404,1736869751490,-205.7240492,0.00016781,2]
[348905406,1736869751512,-250.0,0.0001755,2]
[348905408,1736869751535,-10432.37614288,0.00017843,2]
[348905421,1736869773101,-1120.37188579,0.0001584,2]
[348905422,1736869773123,-163.8084456,0.00016,2]
[348905423,1736869773145,-4381.01346861,0.00017665,2]
[348905498,1736869832319,-151.0,0.00017364,2]
[348905500,1736869832329,-159.17072152,0.00017665,2]
[348905502,1736869832338,-499.0,0.00017841,2]
[348905504,1736869832347,-4086.58244602,0.00017843,2]
[348905506,1736869832356,-151.96,0.000186,2]
[348905508,1736869832365,-300.0,0.00018803,2]
[348905510,1736869832375,-5761.01409985,0.00018804,2]
[348905512,1736869832387,-1660.7102,0.00018804,2]
[348905514,1736869832398,-1465.61570015,0.00018804,2]
[348905516,1736869832408,-453.66661135,0.000189,2]
[348905518,1736869832419,-40.78981271,0.000189,2]
[348905520,1736869832428,-3889.31796344,0.00018904,7]
[348905522,1736869832439,-1110.68203656,0.00018904,7]
[348905524,1736869832449,-500.0,0.00019178,2]
[348905526,1736869832458,-423.84916383,0.00019178,2]
[348905528,1736869832467,-170.749,0.00019401,2]
[348905530,1736869832482,-500.0,0.00019836,2]
[348905532,1736869832493,-151.61205791,0.0002,2]
[348905534,1736869832503,-211.01606803,0.0002,2]
[348905536,1736869832511,-270.04158602,0.000205,2]
[348905539,1736869832525,-149.95841398,0.000205,2]
[348905541,1736869832534,-169.07196,0.00020521,2]
[348905543,1736869832543,-136.83844442,0.00020567,2]
[348905545,1736869832558,-74.17762361,0.00020567,2]
[348905548,1736869832567,-169.07196,0.00020636,2]
[348905551,1736869832577,-169.07196,0.00020751,2]
[348905553,1736869832589,-169.07196,0.00020866,2]
[348905555,1736869832598,-169.07196,0.00020981,2]
[348905557,1736869832609,-169.07196,0.00021096,2]
[348905559,1736869832618,-236.04531814,0.00021494,2]
[348905561,1736869832628,-161.189846,0.00021661,2]
[348905563,1736869832637,-151.0,0.000218,3]
[348905565,1736869832647,-503.47805598,0.00021917,3]
[348905567,1736869832656,-503.46600007,0.00021917,3]
[348905569,1736869832665,-500.0,0.00021917,3]
[348905571,1736869832675,-503.43862009,0.00021917,3]
[348905573,1736869832685,-503.62013923,0.00021917,3]
[348905575,1736869832695,-500.0,0.00021917,3]
[348905578,1736869832706,-500.0,0.00021917,3]
[348905580,1736869832716,-503.53312682,0.00021917,3]
[348905581,1736869832725,-500.0,0.00021917,3]
[348905583,1736869832737,-500.0,0.00021917,3]
[348905585,1736869832746,-500.0,0.00021917,3]
[348905588,1736869832756,-500.0,0.00021917,3]
[348905590,1736869832766,-500.0,0.00021917,3]
[348905592,1736869832775,-3070.3,0.00021917,3]
[348905594,1736869832784,-500.0,0.00021917,3]
[348905596,1736869832796,-500.0,0.00021917,3]
[348905598,1736869832805,-500.0,0.00021917,3]
[348905600,1736869832815,-629.23,0.00021917,3]
[348905602,1736869832824,-500.0,0.00021917,3]
[348905604,1736869832833,-428.00611987,0.00021917,3]
[348905606,1736869832843,-500.0,0.00021917,3]
[348905608,1736869832852,-500.0,0.00021917,3]
[348905610,1736869832861,-500.0,0.00021917,3]
[348905612,1736869832871,-500.0,0.00021917,3]
[348905614,1736869832881,-500.0,0.00021917,3]
[348905616,1736869832891,-500.0,0.00021917,3]
[348905618,1736869832900,-500.0,0.00021917,3]
[348905620,1736869832909,-500.0,0.00021917,3]
[348905622,1736869832919,-500.0,0.00021917,3]
[348905624,1736869832928,-500.0,0.00021917,3]
[348905626,1736869832937,-500.0,0.00021917,3]
[348905628,1736869832947,-500.0,0.00021917,3]
[348905630,1736869832956,-537.24,0.00021917,3]
[348905632,1736869832966,-500.0,0.00021917,3]
[348905634,1736869832976,-500.0,0.00021917,3]
[348905635,1736869832986,-500.0,0.00021917,3]
[348905637,1736869832996,-640.29979172,0.00021917,3]
[348905639,1736869833006,-500.0,0.00021917,3]
[348905641,1736869833015,-500.0,0.00021917,3]
[348905643,1736869833025,-500.0,0.00021917,3]
[348905645,1736869833035,-500.0,0.00021917,3]
[348905648,1736869833045,-500.0,0.00021917,3]
[348905650,1736869833055,-500.0,0.00021917,3]
[348905652,1736869833065,-500.0,0.00021917,3]
[348905654,1736869833075,-500.0,0.00021917,3]
[348905655,1736869833084,-1708.46,0.00021917,3]
[348905658,1736869833094,-500.0,0.00021917,3]
[348905659,1736869833103,-500.0,0.00021917,3]
[348905662,1736869833113,-500.0,0.00021917,3]
[348905663,1736869833123,-167.89,0.00021917,3]
[348905666,1736869833134,-500.0,0.00021917,3]
[348905668,1736869833143,-500.0,0.00021917,3]
[348905669,1736869833153,-1138.46,0.00021917,3]
[348905671,1736869833162,-500.0,0.00021917,3]
[348905673,1736869833172,-500.0,0.00021917,3]
[348905675,1736869833181,-503.42550006,0.00021917,3]
[348905678,1736869833191,-491.24341778,0.00021917,3]
[348905679,1736869833201,-500.0,0.00021917,3]
[348905682,1736869833210,-500.0,0.00021917,3]
[348905684,1736869833220,-500.0,0.00021917,3]
[348905686,1736869833230,-581.81,0.00021917,3]
[348905688,1736869833256,-1212.72,0.00021917,2]
[348905690,1736869833267,-281.6307012,0.00021917,3]
[348905692,1736869833276,-500.0,0.00021917,3]
[348905694,1736869833286,-500.0,0.00021917,3]
[348905696,1736869833296,-500.0,0.00021917,3]
[348905698,1736869833306,-749.71,0.00021917,3]
[348905700,1736869833316,-500.0,0.00021917,3]
[348905702,1736869833327,-500.0,0.00021917,3]
[348905704,1736869833336,-537.18783944,0.00021917,3]
[348905707,1736869833351,-174.44216056,0.00021917,3]
[348905709,1736869833362,-13930.14,0.00021917,3]
[348905711,1736869833371,-576.97,0.00021917,3]
[348905713,1736869833381,-500.0,0.00021917,3]
[348905715,1736869833390,-8476.19,0.00021917,2]
[348905717,1736869833400,-500.0,0.00021917,3]
[348905719,1736869833410,-500.0,0.00021917,3]
[348905721,1736869833419,-500.0,0.00021917,3]
[348905723,1736869833428,-657.0,0.00021917,3]
[348905725,1736869833438,-500.0,0.00021917,3]
[348905727,1736869833448,-474.84103663,0.00021917,3]
[348905729,1736869833457,-1756.13,0.00021917,3]
[348905731,1736869833467,-500.0,0.00021917,3]
[348905733,1736869833479,-500.0,0.00021917,3]
[348905735,1736869833493,-500.0,0.00021917,3]
[348905737,1736869833503,-500.0,0.00021917,3]
[348905739,1736869833512,-500.0,0.00021917,3]
[348905741,1736869833523,-45859.18,0.00021917,3]
[348905743,1736869833532,-500.0,0.00021917,3]
[348905745,1736869833542,-500.0,0.00021917,3]
[348905747,1736869833554,-500.0,0.00021917,3]
[348905749,1736869833564,-500.0,0.00021917,3]
[348905751,1736869833574,-500.0,0.00021917,3]
[348905753,1736869833584,-581.87,0.00021917,3]
[348905755,1736869833595,-500.0,0.00021917,3]
[348905757,1736869833606,-500.0,0.00021917,3]
[348905759,1736869833617,-500.0,0.00021917,3]
[348905761,1736869833627,-500.0,0.00021917,3]
[348905763,1736869833636,-160.0,0.00021917,3]
[348905765,1736869833646,-500.0,0.00021917,3]
[348905767,1736869833655,-500.0,0.00021917,3]
[348905769,1736869833665,-1324.63,0.00021917,3]
[348905771,1736869833675,-500.0,0.00021917,3]
[348905773,1736869833684,-500.0,0.00021917,3]
[348905775,1736869833693,-1162.82,0.00021917,3]
[348905777,1736869833703,-687.27,0.00021917,3]
[348905779,1736869833712,-1634.15,0.00021917,3]
[348905782,1736869833722,-2839.57,0.00021917,3]
[348905783,1736869833731,-622.24,0.00021917,3]
[348905785,1736869833744,-543.73,0.00021917,3]
[348905787,1736869833754,-784.82,0.00021917,3]
[348905789,1736869833763,-213.66190001,0.00021917,3]
[348905791,1736869833773,-500.0,0.00021917,3]
[348905794,1736869833782,-497.00222032,0.00021917,3]
[348905795,1736869833793,-500.0,0.00021917,3]
[348905798,1736869833802,-32651.72648478,0.00021954,3]
[348905799,1736869833812,-500.0,0.00022054,3]
[348905802,1736869833822,-500.0,0.00022054,3]
[348905804,1736869833831,-500.0,0.00022054,3]
[348905806,1736869833841,-500.0,0.00022054,3]
[348905808,1736869833851,-500.0,0.00022054,3]
[348905810,1736869833860,-500.0,0.00022054,3]
[348905812,1736869833870,-500.0,0.00022054,3]
[348905814,1736869833879,-500.0,0.00022054,3]
[348905816,1736869833889,-3070.3,0.00022054,3]
[348905818,1736869833898,-500.0,0.00022054,3]
[348905820,1736869833908,-500.0,0.00022054,3]
[348905822,1736869833917,-500.0,0.00022054,3]
[348905824,1736869833927,-629.23,0.00022054,3]
[348905826,1736869833936,-500.0,0.00022054,3]
[348905828,1736869833945,-500.0,0.00022054,3]
[348905830,1736869833955,-500.0,0.00022054,3]
[348905832,1736869833964,-500.0,0.00022054,3]
[348905834,1736869833974,-500.0,0.00022054,3]
[348905836,1736869833983,-500.0,0.00022054,3]
[348905838,1736869833994,-500.0,0.00022054,3]
[348905840,1736869834003,-500.0,0.00022054,3]
[348905842,1736869834013,-500.0,0.00022054,3]
[348905844,1736869834022,-500.0,0.00022054,3]
[348905846,1736869834032,-500.0,0.00022054,3]
[348905848,1736869834042,-537.24,0.00022054,3]
[348905850,1736869834051,-500.0,0.00022054,3]
[348905852,1736869834061,-500.0,0.00022054,3]
[348905854,1736869834071,-500.0,0.00022054,3]
[348905856,1736869834081,-500.0,0.00022054,3]
[348905858,1736869834091,-500.0,0.00022054,3]
[348905860,1736869834101,-500.0,0.00022054,3]
[348905862,1736869834111,-500.0,0.00022054,3]
[348905864,1736869834120,-500.0,0.00022054,3]
[348905866,1736869834129,-1708.46,0.00022054,3]
[348905868,1736869834139,-500.0,0.00022054,3]
[348905870,1736869834148,-500.0,0.00022054,3]
[348905872,1736869834157,-500.0,0.00022054,3]
[348905874,1736869834167,-1138.46,0.00022054,3]
[348905876,1736869834176,-500.0,0.00022054,3]
[348905878,1736869834185,-500.0,0.00022054,3]
[348905879,1736869834195,-500.0,0.00022054,3]
[348905881,1736869834205,-232.51429619,0.00022054,3]
[348905884,1736869834218,-500.0,0.00022054,3]
[348905886,1736869834228,-581.81,0.00022054,3]
[348905888,1736869834239,-1212.72,0.00022054,2]
[348905890,1736869834249,-500.0,0.00022054,3]
[348905892,1736869834260,-341.26761573,0.00022054,3]
[348905894,1736869834270,-500.0,0.00022054,3]
[348905896,1736869834279,-749.71,0.00022054,3]
[348905898,1736869834288,-269.03297328,0.00022054,3]
[348905901,1736869834309,-230.96702672,0.00022054,3]
[348905903,1736869834319,-500.0,0.00022054,3]
[348905905,1736869834329,-711.63,0.00022054,3]
[348905907,1736869834339,-13930.14,0.00022054,3]
[348905909,1736869834349,-576.97,0.00022054,3]
[348905911,1736869834359,-500.0,0.00022054,3]
[348905913,1736869834368,-8476.19,0.00022054,2]
[348905915,1736869834378,-500.0,0.00022054,3]
[348905917,1736869834388,-500.0,0.00022054,3]
[348905919,1736869834398,-500.0,0.00022054,3]
[348905921,1736869834407,-657.0,0.00022054,3]
[348905923,1736869834417,-500.0,0.00022054,3]
[348905925,1736869834426,-1756.13,0.00022054,3]
[348905927,1736869834436,-500.0,0.00022054,3]
[348905929,1736869834446,-500.0,0.00022054,3]
[348905931,1736869834455,-500.0,0.00022054,3]
[348905933,1736869834464,-500.0,0.00022054,3]
[348905935,1736869834475,-500.0,0.00022054,3]
[348905937,1736869834485,-796.79708617,0.00022054,3]
[348905939,1736869834498,-25264.32088759,0.00022054,3]
[348905941,1736869834510,-19798.06202624,0.00022054,3]
[348905943,1736869834520,-500.0,0.00022054,3]
[348905945,1736869834530,-500.0,0.00022054,3]
[348905947,1736869834539,-500.0,0.00022054,3]
[348905949,1736869834550,-500.0,0.00022054,3]
[348905951,1736869834561,-581.87,0.00022054,3]
[348905953,1736869834570,-500.0,0.00022054,3]
[348905955,1736869834580,-500.0,0.00022054,3]
[348905957,1736869834589,-500.0,0.00022054,3]
[348905959,1736869834599,-500.0,0.00022054,3]
[348905961,1736869834608,-133.79059881,0.00022054,3]
[348906222,1736869838116,-311.745251,0.00019158,2]
[348906224,1736869838126,-653.55,0.00021917,3]
[348906226,1736869838135,-364.91812825,0.00022053,2]
[348906227,1736869838145,-366.20940119,0.00022054,3]
[348906229,1736869838155,-500.0,0.00022054,3]
[348906231,1736869838164,-1153.57721955,0.00022054,3]
[348906234,1736869838176,-171.05278045,0.00022054,3]
[348906236,1736869838186,-500.0,0.00022054,3]
[348906238,1736869838195,-110.28267685,0.00022054,3]
[348906242,1736869838223,-500.0,0.00021917,3]
[348906244,1736869838233,-389.71732315,0.00022054,3]
[348906246,1736869838250,-1162.82,0.00022054,3]
[348906248,1736869838260,-687.27,0.00022054,3]
[348906249,1736869838269,-1634.15,0.00022054,3]
[348906250,1736869838279,-622.24,0.00022054,3]
[348906251,1736869838288,-33.52083685,0.00022054,3]
[348906252,1736869838299,-2806.04916315,0.00022054,3]
[348906253,1736869838309,-543.73,0.00022054,3]
[348906254,1736869838319,-784.82,0.00022054,3]
[348906255,1736869838328,-500.0,0.00022054,3]
[348906256,1736869838337,-500.0,0.00022054,3]
[348906257,1736869838347,-653.55,0.00022054,3]
[348906258,1736869838356,-58.25890713,0.00022073,2]
[348906259,1736869838368,-406.02244652,0.00022073,2]
[348906260,1736869838377,-500.0,0.00022073,2]
[348906261,1736869838387,-3132.09982715,0.000221,14]
[348906262,1736869838398,-542.05,0.000221,14]
[348906263,1736869838410,-1786.12017285,0.000221,14]
[348906264,1736869838420,-3664.45188639,0.000221,2]
[348906346,1736869840243,-500.0,0.00021917,3]
[348906348,1736869840254,-500.0,0.00022054,3]
[348906351,1736869840264,-500.0,0.00022054,3]
[348906353,1736869840274,-1561.83099691,0.000221,2]
[348906355,1736869840286,-736.55332444,0.000221,2]
[348906357,1736869840298,-5031.40379226,0.000221,2]
[348906359,1736869840308,-2151.35,0.000221,14]
[348906361,1736869840318,-500.0,0.00022191,3]
[348906363,1736869840328,-500.0,0.00022191,3]
[348906365,1736869840337,-500.0,0.00022191,3]
[348906367,1736869840347,-500.0,0.00022191,3]
[348906369,1736869840356,-500.0,0.00022191,3]
[348906371,1736869840366,-500.0,0.00022191,3]
[348906374,1736869840376,-500.0,0.00022191,3]
[348906376,1736869840386,-3070.3,0.00022191,3]
[348906378,1736869840395,-500.0,0.00022191,3]
[348906379,1736869840405,-500.0,0.00022191,3]
[348906381,1736869840414,-500.0,0.00022191,3]
[348906383,1736869840424,-629.23,0.00022191,3]
[348906385,1736869840434,-500.0,0.00022191,3]
[348906387,1736869840444,-500.0,0.00022191,3]
[348906390,1736869840455,-500.0,0.00022191,3]
[348906393,1736869840464,-500.0,0.00022191,3]
[348906396,1736869840475,-500.0,0.00022191,3]
[348906398,1736869840486,-500.0,0.00022191,3]
[348906400,1736869840496,-500.0,0.00022191,3]
[348906402,1736869840505,-500.0,0.00022191,3]
[348906404,1736869840516,-500.0,0.00022191,3]
[348906407,1736869840527,-500.0,0.00022191,3]
[348906409,1736869840536,-500.0,0.00022191,3]
[348906411,1736869840546,-537.24,0.00022191,3]
[348906413,1736869840557,-500.0,0.00022191,3]
[348906415,1736869840566,-500.0,0.00022191,3]
[348906417,1736869840575,-500.0,0.00022191,3]
[348906419,1736869840585,-500.0,0.00022191,3]
[348906421,1736869840594,-500.0,0.00022191,3]
[348906423,1736869840603,-500.0,0.00022191,3]
[348906425,1736869840613,-500.0,0.00022191,3]
[348906427,1736869840622,-500.0,0.00022191,3]
[348906429,1736869840631,-1708.46,0.00022191,3]
[348906430,1736869840640,-500.0,0.00022191,3]
[348906431,1736869840651,-500.0,0.00022191,3]
[348906434,1736869840662,-1138.46,0.00022191,3]
[348906436,1736869840671,-500.0,0.00022191,3]
[348906438,1736869840681,-500.0,0.00022191,3]
[348906440,1736869840694,-500.0,0.00022191,3]
[348906442,1736869840703,-581.81,0.00022191,3]
[348906444,1736869840712,-1212.72,0.00022191,2]
[348906446,1736869840722,-500.0,0.00022191,3]
[348906448,1736869840731,-500.0,0.00022191,3]
[348906450,1736869840742,-749.71,0.00022191,3]
[348906452,1736869840751,-500.0,0.00022191,3]
[348906454,1736869840760,-500.0,0.00022191,3]
[348906456,1736869840770,-711.63,0.00022191,3]
[348906458,1736869840779,-13930.14,0.00022191,3]
[348906460,1736869840788,-576.97,0.00022191,3]
[348906462,1736869840801,-500.0,0.00022191,3]
[348906464,1736869840810,-8476.19,0.00022191,2]
[348906466,1736869840820,-218.25257808,0.00022191,3]
[348906468,1736869840830,-500.0,0.00022191,3]
[348906470,1736869840839,-611.29012633,0.00022191,3]
[348906472,1736869840849,-657.0,0.00022191,3]
[348906474,1736869840858,-500.0,0.00022191,3]
[348906476,1736869840867,-1756.13,0.00022191,3]
[348906478,1736869840877,-500.0,0.00022191,3]
[348906480,1736869840887,-500.0,0.00022191,3]
[348906482,1736869840897,-500.0,0.00022191,3]
[348906484,1736869840906,-500.0,0.00022191,3]
[348906486,1736869840916,-500.0,0.00022191,3]
[348906488,1736869840926,-45859.18,0.00022191,3]
[348906489,1736869840935,-500.0,0.00022191,3]
[348906491,1736869840945,-500.0,0.00022191,3]
[348906493,1736869840955,-500.0,0.00022191,3]
[348906495,1736869840964,-500.0,0.00022191,3]
[348906497,1736869840974,-581.87,0.00022191,3]
[348906498,1736869840983,-500.0,0.00022191,3]
[348906499,1736869840993,-500.0,0.00022191,3]
[348906500,1736869841002,-500.0,0.00022191,3]
[348906501,1736869841012,-500.0,0.00022191,3]
[348906502,1736869841021,-500.0,0.00022191,3]
[348906503,1736869841031,-500.0,0.00022191,3]
[348906504,1736869841041,-1324.63,0.00022191,3]
[348906505,1736869841050,-500.0,0.00022191,3]
[348906506,1736869841060,-500.0,0.00022191,3]
[348906507,1736869841069,-1162.82,0.00022191,3]
[348906508,1736869841079,-1634.15,0.00022191,3]
[348906509,1736869841089,-687.27,0.00022191,3]
[348906510,1736869841099,-622.24,0.00022191,3]
[348906511,1736869841108,-2839.57,0.00022191,3]
[348906512,1736869841118,-543.73,0.00022191,3]
[348906513,1736869841128,-784.82,0.00022191,3]
[348906514,1736869841137,-500.0,0.00022191,3]
[348906515,1736869841147,-500.0,0.00022191,3]
[348906516,1736869841157,-653.55,0.00022191,3]
[348906517,1736869841167,-500.0,0.00022191,3]
[348906518,1736869841176,-500.0,0.00022191,3]
[348906519,1736869841186,-151.0,0.000222,9]
[348906520,1736869841195,-211.01606803,0.00022233,2]
[348906521,1736869841205,-150.603,0.00022309,2]
[348906522,1736869841215,-535.0,0.00022309,2]
[348906523,1736869841224,-2070.0,0.00022309,2]
[348906524,1736869841234,-2312.0,0.00022309,2]
[348906525,1736869841243,-395.0,0.00022309,2]
[348906526,1736869841253,-500.0,0.00022313,2]
[348906527,1736869841263,-163.86956606,0.00022328,3]
[348906528,1736869841272,-500.0,0.00022328,3]
[348906529,1736869841282,-500.0,0.00022328,3]
[348906530,1736869841291,-500.0,0.00022328,3]
[348906531,1736869841301,-500.0,0.00022328,3]
[348906532,1736869841311,-500.0,0.00022328,3]
[348906533,1736869841320,-500.0,0.00022328,3]
[348906534,1736869841330,-3070.3,0.00022328,3]
[348906535,1736869841339,-500.0,0.00022328,3]
[348906536,1736869841349,-500.0,0.00022328,3]
[348906537,1736869841359,-500.0,0.00022328,3]
[348906538,1736869841368,-629.23,0.00022328,3]
[348906539,1736869841378,-500.0,0.00022328,3]
[348906540,1736869841387,-500.0,0.00022328,3]
[348906541,1736869841397,-500.0,0.00022328,3]
[348906542,1736869841407,-500.0,0.00022328,3]
[348906543,1736869841417,-500.0,0.00022328,3]
[348906544,1736869841427,-500.0,0.00022328,3]
[348906545,1736869841436,-500.0,0.00022328,3]
[348906546,1736869841446,-500.0,0.00022328,3]
[348906547,1736869841457,-500.0,0.00022328,3]
[348906548,1736869841466,-500.0,0.00022328,3]
[348906549,1736869841478,-500.0,0.00022328,3]
[348906550,1736869841488,-537.24,0.00022328,3]
[348906551,1736869841500,-500.0,0.00022328,3]
[348906552,1736869841510,-500.0,0.00022328,3]
[348906553,1736869841521,-500.0,0.00022328,3]
[348906554,1736869841531,-176.32276715,0.00022328,3]
[348906555,1736869841541,-500.0,0.00022328,3]
[348906556,1736869841552,-500.0,0.00022328,3]
[348906557,1736869841562,-500.0,0.00022328,3]
[348906558,1736869841571,-433.45601491,0.00022328,3]
[348906559,1736869841580,-1708.46,0.00022328,3]
[348906560,1736869841589,-500.0,0.00022328,3]
[348906561,1736869841599,-500.0,0.00022328,3]
[348906562,1736869841609,-1138.46,0.00022328,3]
[348906563,1736869841618,-500.0,0.00022328,3]
[348906564,1736869841627,-500.0,0.00022328,3]
[348906565,1736869841637,-500.0,0.00022328,3]
[348906566,1736869841647,-581.81,0.00022328,3]